[Event "45th FIDE Womens Olympiad 2024"]
[Site "Budapest"]
[Date "2024.09.15"]
[Round "5.104"]
[White "Mihelic, Vesna"]
[Black "Oviedo Acosta, Paula"]
[Result "1-0"]
[ECO "B22"]
[WhiteElo "2069"]
[BlackElo "1790"]
[Annotator "TA"]
[PlyCount "83"]
[EventDate "2024.09.05"]
[EventType "team-tourn"]
[EventCountry "HUN"]
[SourceTitle "playchess.com"]
[Source "ChessBase"]
[SourceQuality "1"]
[WhiteTeam "Slovenia"]
[BlackTeam "Paraguay"]
[WhiteTeamCountry "SLO"]
[BlackTeamCountry "PAR"]
[TimeControl "40/5400+30:1800+30"]

{[%evp 10,83,29,26,40,22,27,31,35,23,18,0,43,0,0,0,0,0,5,0,0,-2,21,14,34,31,42,34,214,193,197,191,289,285,279,256,495,508,570,556,543,537,573,589,973,919,1670,599,1602,1463,1472,1423,2369,1398,5419,4666,5514,5425,5910,6249,29959,29958,29965,29966,29983,29984,29985,29986,29989,29990,29990,29991,29993,29994,29995,29994]} 1. e4 c5 2. Nf3 a6 3. c3 e6 4. d4 d5 5. exd5 exd5 6. Bd3 c4 7. Bc2 Bd6 8. O-O Ne7 {White is slightly better.} 9. Re1 (9. Ne5 {looks sharper.} O-O 10. Qh5 g6 11. Qf3) 9... O-O 10. Nbd2 {[%cal Bb1d2,Bd2f1,Bf1g3,Bg3f5][%mdl 32]} Nbc6 11. Nf1 Bf5 12. Ng3 Bxc2 13. Qxc2 Qc7 14. Nf5 Rfe8 15. Bd2 Ng6 16. g3 b5 17. h4 {h5 would now be deadly.} Nf8 18. h5 {[%cal Od2h6] Black must now prevent Bh6!} Ne6 $2 {[#] A mistake that costs the game.} (18... Qd7 $14) 19. Rxe6 $1 $18 {[%mdl 512]} Rxe6 20. Ng5 {Excellent horsemanship.} h6 (20... g6 {keeps fighting.}) 21. Nxe6 fxe6 22. Nxh6+ gxh6 $2 (22... Kh8 {was called for.} 23. Qg6 Rf8) 23. Qg6+ Kh8 24. Qxh6+ (24. Qxe6 Bf8 $16) ({And not} 24. Bxh6 Rg8 25. Qf6+ Kh7 $14) 24... Qh7 25. Qxe6 Rd8 26. Bg5 (26. Qxd5 Ne7 27. Qg5 Rf8 $11) 26... Qd7 27. Qh6+ ({Not} 27. Qxd5 Be7 28. Qxd7 Rxd7 $18) 27... Qh7 28. Bf6+ Kg8 {[%cal Bh8g8,Bg8f7,Bf7e8,Be8d7,Bd7c7][%mdl 32]} 29. Qg5+ Kf7 30. Bxd8 Ke8 31. Qxd5 {White threatens Re1+ and mate.} Kd7 32. Bf6 {White wants to mate with Re1.} Kc7 33. Re1 {[%cal Ba1e1,Be1e6,Be6e8,Be8d8][%mdl 32]} Qd7 34. Qe6 Qxe6 35. Rxe6 {KRB-KBN. White mates.} Bf8 36. d5 Nd8 37. Re8 Bh6 38. Rxd8 Bc1 39. f4 Bxb2 40. h6 {[%cal Bh5h6,Bh6h7][%mdl 32]} b4 41. h7 b3 42. axb3 {Weighted Error Value: White=0.05 (flawless) /Black=0.70.  Loses game:     	---       	Black=1      Mistake:       	---       	Black=2      Inaccurate:     	White=1     	Black=3      OK:         	White=11    	Black=7      Best:        	White=2     	---        Brilliant:      	White=1     	---} 1-0

[Event "45th FIDE Womens Olympiad 2024"]
[Site "Budapest"]
[Date "2024.09.15"]
[Round "5.105"]
[White "Smith, Olivia"]
[Black "Borosova, Zuzana"]
[Result "1-0"]
[ECO "C45"]
[WhiteElo "2087"]
[BlackElo "2205"]
[Annotator "TA"]
[PlyCount "87"]
[EventDate "2024.09.05"]
[EventType "team-tourn"]
[EventCountry "HUN"]
[SourceTitle "playchess.com"]
[Source "ChessBase"]
[SourceQuality "1"]
[WhiteTeam "Wales"]
[BlackTeam "Slovakia"]
[WhiteTeamCountry "WLS"]
[BlackTeamCountry "SVK"]
[TimeControl "40/5400+30:1800+30"]

{[%evp 14,87,-16,-34,-14,-15,-8,-12,32,-10,19,30,25,28,29,31,67,68,92,101,82,94,128,63,70,62,114,123,161,123,114,99,186,121,118,107,100,116,124,104,107,98,206,203,279,309,1271,1230,1082,643,1840,5233,4407,2756,29970,29961,29975,29976,29974,29976,29976,29977,29948,1868,1618,1560,29976,29977,29980,29981,29980,29982,29981,29982,29982,29983]} 1. e4 e5 2. Nf3 Nc6 3. d4 exd4 4. Nxd4 Nf6 5. Nxc6 bxc6 6. e5 Qe7 7. Qe2 Nd5 8. h4 a5 9. g3 Ba6 10. c4 $1 Nb6 {The position is equal.} 11. Nd2 O-O-O 12. b3 f6 13. Bb2 fxe5 14. Bh3 {[%cal Oe1g1]} (14. Bxe5 $2 Re8 15. f4 d6 $19) (14. Qxe5 $2 Qxe5+ 15. Bxe5 Re8 $19) 14... Kb8 15. O-O $1 {[%cal Of1e1][%mdl 1024] White has compensation.} (15. Bxe5 $2 Re8 16. f4 d6 $19) (15. Qxe5 $2 Qxe5+ 16. Bxe5 Re8 $19) 15... d6 16. Bg2 Qe8 17. Rfe1 $36 {[%mdl 2048] White is really pushing. White is more active.} Be7 18. Nf3 ({White should try} 18. Bc3 $16) 18... c5 $14 19. Bc3 Bf6 (19... Bb7 $14) 20. Nd2 $16 (20. Bxa5 e4 21. Rac1 d5 (21... exf3 $2 {loses.} 22. Qxf3 Qf8 23. Bxb6 $18)) 20... Bb7 21. Bxb7 Kxb7 22. Bxa5 Qc6 (22... e4 $16) 23. Bxb6 (23. Ne4 $18) 23... cxb6 24. Ne4 d5 25. cxd5 Rxd5 26. a4 {[%cal Ba2a4,Ba4a5][%mdl 32]} Rd4 27. a5 {[#] And now axb6 would win.} b5 (27... Ra8 $16 {keeps fighting.}) 28. Rac1 $18 c4 29. bxc4 Rxc4 $2 (29... b4 30. Rb1 Be7) 30. Rxc4 bxc4 31. Rc1 Rd8 32. Rxc4 {[#] Intending Qb2+ and mate.} Qd5 33. Rb4+ Kc7 34. Qc2+ Kd7 35. Nxf6+ gxf6 36. Qxh7+ {KQR-KQR} Ke6 37. Rb6+ Rd6 38. Qg8+ (38. Qc7 $142 Rxb6 39. Qxb6+ (39. axb6 Qd1+ 40. Kh2 Qf3 $18) 39... Kf5 40. a6 Qd1+ 41. Kh2 Kg6 42. a7 Qf3 43. Qb2) 38... Kf5 39. Qc8+ Kg6 40. Qg4+ {White mates.} Kh6 41. Rxd6 Qxd6 42. h5 {[%csl Gh5][%cal Rg4g6,Bh4h5,Bh5h6][%mdl 32]} Kh7 43. Qg6+ Kh8 44. h6 {Weighted Error Value: White=0.24 (precise) /Black=0.70.  Mistake:       	White=2     	Black=4      Inaccurate:     	White=1     	Black=6      OK:         	White=9     	Black=6      Best:        	White=1     	Black=2      Strong:       	White=2     	---} 1-0

[Event "45th FIDE Womens Olympiad 2024"]
[Site "Budapest"]
[Date "2024.09.15"]
[Round "5.106"]
[White "Repkova, Eva"]
[Black "Camp, Imogen A L"]
[Result "1-0"]
[ECO "C42"]
[WhiteElo "2319"]
[BlackElo "1923"]
[Annotator "TA"]
[PlyCount "115"]
[EventDate "2024.09.05"]
[EventType "team-tourn"]
[EventCountry "HUN"]
[SourceTitle "playchess.com"]
[Source "ChessBase"]
[SourceQuality "1"]
[WhiteTeam "Slovakia"]
[BlackTeam "Wales"]
[WhiteTeamCountry "SVK"]
[BlackTeamCountry "WLS"]
[TimeControl "40/5400+30:1800+30"]

{[%evp 14,115,50,22,16,27,26,15,30,31,66,68,129,134,130,86,99,101,74,79,69,56,57,-116,18,-116,0,0,0,0,0,0,0,0,0,0,73,61,158,149,145,150,147,133,130,120,120,130,147,162,166,173,172,172,166,166,180,172,176,178,207,201,219,168,172,181,267,260,248,258,269,270,271,285,613,584,641,655,577,651,565,466,764,781,540,0,634,627,652,638,1090,1079,1163,1100,29976,29977,29983,29984,29984,29984,29984,29985,29985,29986]} 1. e4 e5 2. Nf3 Nf6 3. Nxe5 Nxe4 4. Qe2 Qe7 5. Qxe4 d6 6. d4 dxe5 7. dxe5 Nc6 8. Bb5 Bd7 9. Nc3 $1 O-O-O 10. Bf4 g5 {The position is equal.} 11. Be3 {Hoping for 0-0-0.} h6 12. O-O-O Bg7 (12... a6 $14 13. Ba4 Bg7) 13. Qa4 $16 {White is much more active.} Qxe5 14. Bxa7 Nxa7 15. Bxd7+ (15. Rxd7 $6 Kb8 $11 (15... Nxb5 16. Rxf7 Kb8 17. Qxb5 $16)) 15... Kb8 16. Rd5 Qf6 {Black is weak on the light squares} 17. f3 c6 18. Ra5 (18. Rd3 $1 $14 {is the one way to stay ahead.}) 18... Qd4 (18... Qe7 $1 $17 {[%cal Re7e3]} 19. Rd1 Qe3+ 20. Kb1 Bxc3 21. bxc3 Nb5 22. Rxb5 (22. Ra8+ Kc7 $15) 22... cxb5) 19. Rd1 (19. Qxd4 $1 $11 {was the only way to keep the balance.} Bxd4 20. Bf5) 19... Qxa4 ({Better is} 19... Qe3+ $1 $17 20. Kb1 Bxc3 21. bxc3 Nb5 22. Rxb5 (22. Ra8+ Kc7 $17) 22... cxb5) 20. Nxa4 $11 Nb5 21. c4 $1 $36 {[%mdl 2048] Black is under pressure.} Nd4 22. Nb6 Kc7 {[%csl LRb6,LRd7]} 23. c5 Ne2+ ({Much weaker is} 23... Rxd7 $6 24. Nxd7 Kxd7 25. Ra4 $18) 24. Kc2 Nf4 (24... Nd4+ $11 25. Kc1 (25. Kc3 Nxf3+ 26. Kc2 Nd4+ 27. Kc1 f5 $15) 25... Ne2+ (25... Rxd7 26. Nxd7 Kxd7 27. Ra4 $18) 26. Kb1 Nf4) 25. Rd2 $16 Nd5 {White leaves nothing to chance now.} 26. Nxd5+ cxd5 {[#]} 27. Bb5 Be5 28. g3 h5 29. Re2 Bf6 30. Ra3 Ra8 31. Rxa8 Rxa8 {[%mdl 4096] Endgame. KRB-KRB} 32. a4 b6 33. cxb6+ Kxb6 34. Re8 {Prevents Rc8+.} Ra7 {[#]} 35. Rc8 $1 {Threatens to win with Rc6+.} Be7 36. Rc6+ Ka5 37. Kc3 Ra8 38. Kd4 Kb4 39. Kxd5 Ra7 (39... Rd8+ $142 40. Ke5 Rd2) 40. Rb6 $18 Bd8 41. Rb8 {Intending Bc6+ and mate.} Bc7 42. Rh8 h4 43. gxh4 Bxh2 $2 (43... gxh4 44. Rxh4+ Kb3) 44. hxg5 Bg3 {Dodges Rh4+} 45. Rh3 Bb8 {[#]} 46. f4 $1 Re7 47. Rf3 Rc7 {[#]} (47... Re6 $142 48. b3 Re7) 48. Rc3 $1 {aiming for Rxc7.} Re7 (48... Rb7 49. Bc6) 49. Rf3 Rc7 $1 50. Ke4 Re7+ 51. Kf5 Re6 52. Rd3 Re7 53. Rd7 Rxd7 54. Bxd7 {White mates.} Bd6 55. Be8 Be7 56. Bxf7 Kxa4 57. g6 Bf8 58. Kf6 {Weighted Error Value: White=0.27 (precise) /Black=0.36.  Mistake:       	White=2     	Black=7      Inaccurate:     	White=1     	Black=1      OK:         	White=24    	Black=15     Best:        	White=2     	Black=3      Strong:       	White=3     	---} 1-0

[Event "45th FIDE Womens Olympiad 2024"]
[Site "Budapest"]
[Date "2024.09.15"]
[Round "5.107"]
[White "Smith, Lynda"]
[Black "Mrvova, Alena"]
[Result "0-1"]
[ECO "B26"]
[WhiteElo "1831"]
[BlackElo "2121"]
[Annotator "TA"]
[PlyCount "76"]
[EventDate "2024.09.05"]
[EventType "team-tourn"]
[EventCountry "HUN"]
[SourceTitle "playchess.com"]
[Source "ChessBase"]
[SourceQuality "1"]
[WhiteTeam "Wales"]
[BlackTeam "Slovakia"]
[WhiteTeamCountry "WLS"]
[BlackTeamCountry "SVK"]
[TimeControl "40/5400+30:1800+30"]

{[%evp 12,76,7,-5,0,0,0,0,2,0,5,-30,0,-11,0,0,4,16,33,3,8,2,10,0,8,14,41,24,29,28,20,25,118,115,170,76,234,75,97,83,84,93,93,-22,155,155,142,127,246,261,270,0,0,0,0,-29984,-29985,-29985,-29986,-29986,-29987,-29992,-29993,-29997,-29998,-29998,-29999]} 1. e4 c5 2. Nc3 Nc6 3. g3 g6 4. Bg2 Bg7 5. d3 d6 6. Be3 Rb8 7. Qd2 Nf6 8. Bh6 Bxh6 9. Qxh6 Nd4 {The position is equal.} 10. Qd2 b5 11. h4 h5 12. Nd1 e5 13. c3 Ne6 14. Nf3 Bb7 15. O-O O-O 16. Ne3 c4 17. Ng5 Nxg5 (17... Nc5 $5) 18. hxg5 Nh7 19. f4 exf4 20. gxf4 Re8 21. Rae1 f6 (21... cxd3 $11 22. Qxd3 Qe7) 22. dxc4 $16 (22. f5 cxd3 23. fxg6 Nxg5 $15) 22... fxg5 {[#]} (22... bxc4 $16 23. Nxc4 fxg5) 23. cxb5 (23. f5 $1 $18 {[%cal Rf5g6] and the rest is easy.}) 23... g4 $2 (23... gxf4 $16 24. Rxf4 Qg5 25. Qxd6 Rbd8) 24. Nd5 $2 (24. f5 $18) 24... h4 {[%cal Bh5h4,Bh4h3][%mdl 32]} 25. e5 $36 {[%mdl 2048] White is in control.} h3 {[#]} 26. Be4 dxe5 27. fxe5 ({White should try} 27. c4 $16) 27... Qh4 $2 {Black is weak on the dark squares} (27... Rxe5 $11 28. c4 Qg5 (28... Ng5 29. Nf6+ Kg7 30. Qc3 $11) 29. Qxg5 Nxg5) 28. Qf4 {Threatens to win with Nf6+.} ({Stronger than} 28. Bxg6 Qg3+ 29. Kh1 Rxe5 30. Rxe5 Qxe5 $11) 28... Rf8 29. Nf6+ Nxf6 (29... Kh8 $16 {keeps fighting.}) 30. exf6 $18 {And now Qc7 would win.} Bxe4 31. f7+ $2 ({Weaker is} 31. Qxe4 Kh8 $14) (31. Rxe4 $18 {aiming for Qc7.} Rb7 32. Qxg4 Qxg4+ 33. Rxg4 Rxb5 34. Rxg6+ Kh7 35. Rg3) 31... Kh7 $11 32. Rxe4 Rxb5 {[%cal Ob5f5] Strongly threatening ...Rf5!} 33. Re8 $2 {[%mdl 8192]} (33. Re5 $11 Rxe5 (33... Rxb2 34. Kh1 $11) 34. Qxe5) 33... Rf5 $1 {Black mates.} 34. Qh2 Rxf1+ 35. Kxf1 Rxf7+ 36. Kg1 g3 37. Qd2 h2+ 38. Kh1 Rf1+ {Weighted Error Value: White=0.54/Black=0.36.  Loses game:     	White=1     	---        Missed win:     	White=1     	---        Mistake:       	White=3     	Black=5      Inaccurate:     	White=2     	Black=2      OK:         	White=11    	Black=8      Best:        	White=2     	Black=1      Strong:       	---       	Black=1} 0-1

[Event "45th FIDE Womens Olympiad 2024"]
[Site "Budapest"]
[Date "2024.09.15"]
[Round "5.108"]
[White "Bochnickova, Simona"]
[Black "Kong, Emma Zihan"]
[Result "1-0"]
[ECO "B33"]
[WhiteElo "2138"]
[BlackElo "1747"]
[Annotator "TA"]
[PlyCount "49"]
[EventDate "2024.09.05"]
[EventType "team-tourn"]
[EventCountry "HUN"]
[SourceTitle "playchess.com"]
[Source "ChessBase"]
[SourceQuality "1"]
[WhiteTeam "Slovakia"]
[BlackTeam "Wales"]
[WhiteTeamCountry "SVK"]
[BlackTeamCountry "WLS"]
[TimeControl "40/5400+30:1800+30"]

{[%evp 22,49,38,29,103,39,66,10,33,35,43,0,0,4,30,32,25,21,37,37,49,13,104,101,135,131,29995,29996,29997,29998]} 1. e4 c5 2. Nf3 Nc6 3. d4 cxd4 4. Nxd4 e5 5. Nb5 d6 6. N1c3 Nf6 7. Bg5 a6 8. Na3 b5 9. Nd5 Be7 10. Bxf6 Bxf6 11. c3 Be6 12. Nc2 Be7 (12... O-O $11 {keeps the balance.}) 13. Nce3 {Excellent horsemanship.} ({White should play} 13. a4 $1 $16 {[%cal Ra4b5]} Rb8 14. axb5 axb5 15. Bd3) 13... Bg5 14. a4 (14. Nf5 $14) 14... Bxe3 {The position is equal.} 15. Nxe3 b4 16. cxb4 {[%cal Of1a6] Threatens to win with Bxa6!} Nxb4 17. Bc4 Qd7 18. Qd2 Nc6 19. O-O Bxc4 20. Nxc4 {[%cal Oc4b6] Black must now prevent Nb6!} Rd8 $1 21. Ra3 d5 (21... O-O $11 {remains equal.}) 22. Nb6 $36 {[%csl LRd5,LRd7][%cal Bc4b6,Bb6d5,Bd5f6][%mdl 2080] White is on the roll.} Qb7 23. Nxd5 {White is more active.} O-O $2 {[%mdl 8192] [#]} (23... f5 $16) 24. Nf6+ $1 {[%mdl 512]} Kh8 {[#]} (24... gxf6 25. Rg3+) 25. Rh3 $1 {Weighted Error Value: White=0.19 (very precise) /Black=0.70.  Loses game:     	---       	Black=1      Mistake:       	White=2     	Black=1      Inaccurate:     	White=2     	Black=3      OK:         	White=3     	Black=1      Best:        	White=1     	---        Strong:       	---       	Black=1      Brilliant:      	White=1     	---} 1-0

[Event "45th FIDE Womens Olympiad 2024"]
[Site "Budapest"]
[Date "2024.09.15"]
[Round "5.109"]
[White "Rivera, Ingris"]
[Black "Pang, Kay Yan Eden"]
[Result "1-0"]
[ECO "E05"]
[WhiteElo "2171"]
[BlackElo "1847"]
[Annotator "TA"]
[PlyCount "75"]
[EventDate "2024.09.05"]
[EventType "team-tourn"]
[EventCountry "HUN"]
[SourceTitle "playchess.com"]
[Source "ChessBase"]
[SourceQuality "1"]
[WhiteTeam "Colombia"]
[BlackTeam "Singapore"]
[WhiteTeamCountry "COL"]
[BlackTeamCountry "SIN"]
[TimeControl "40/5400+30:1800+30"]

{[%evp 18,75,0,-24,5,-36,-20,-14,0,-14,-8,-17,0,0,-12,-12,0,0,0,0,0,0,0,0,15,-6,0,-2,9,0,51,41,133,125,130,129,131,130,150,134,136,79,475,481,475,476,1155,932,948,936,913,904,949,945,938,900,894,891,844,827]} 1. d4 d5 2. Nf3 e6 3. g3 Nf6 4. Bg2 Be7 5. O-O O-O 6. c4 dxc4 7. Ne5 Nc6 8. Nxc6 bxc6 9. Bxc6 Rb8 10. Bg2 c5 11. Na3 cxd4 {[#] Hoping for ...Bxa3.} 12. Nxc4 Bb7 {The position is equal.} 13. Bxb7 Rxb7 14. Qd3 Qd5 15. b3 Rd8 16. Bb2 Ne4 17. Rad1 {[%cal Ba1d1,Bd1d2,Bd2c2][%mdl 32]} Rbd7 18. Qf3 Nc5 19. Qxd5 Rxd5 20. Ba3 Bf6 21. Rd2 Ne4 22. Rc2 e5 23. Bb4 Rc8 (23... Rb5 $11 24. Be1 Ng5) 24. Rfc1 $14 {[%cal Bf1c1,Bc1c2,Bc2c8][%mdl 32]} g6 (24... Bd8 $14) 25. f3 $16 Ng5 26. Nd6 Rxc2 27. Rxc2 {[#] Threatens to win with Rc8+.} h5 28. Rc8+ Kh7 29. h4 {White is more active.} (29. Kf2 $142) 29... Nxf3+ $2 {[%mdl 8192] A mistake that costs the game.} 30. exf3 $18 {[%cal Be2f3,Bf3e4][%mdl 32] White is clearly winning.} Be7 31. Ne4 f5 (31... Rd8 $142 32. Rxd8 (32. Bxe7 Rxc8 33. Bd6 f5 $14) 32... Bxd8) 32. Rc7 fxe4 33. Rxe7+ {KRB-KR} Kg8 34. fxe4 Rb5 35. Bd2 Rc5 36. Kf2 Rc2 37. Ke2 Rxa2 38. Rxe5 {Weighted Error Value: White=0.08 (flawless) /Black=0.36.  Loses game:     	---       	Black=1      Mistake:       	White=1     	Black=3      Inaccurate:     	White=1     	---        OK:         	White=12    	Black=5      Best:        	White=1     	Black=1} 1-0

[Event "45th FIDE Womens Olympiad 2024"]
[Site "Budapest"]
[Date "2024.09.15"]
[Round "5.110"]
[White "Rice, Lauren"]
[Black "Argote Heredia, Valentina"]
[Result "0-1"]
[ECO "E11"]
[WhiteElo "1824"]
[BlackElo "2144"]
[Annotator "NA RC"]
[PlyCount "74"]
[EventDate "2024.09.05"]
[EventType "team-tourn"]
[EventCountry "HUN"]
[SourceTitle "playchess.com"]
[Source "ChessBase"]
[SourceQuality "1"]
[WhiteTeam "Singapore"]
[BlackTeam "Colombia"]
[WhiteTeamCountry "SIN"]
[BlackTeamCountry "COL"]
[TimeControl "40/5400+30:1800+30"]

1. d4 Nf6 2. c4 e6 3. Nf3 Bb4+ 4. Bd2 Qe7 5. g3 Nc6 6. Bg2 Bxd2+ 7. Nbxd2 d6 8. O-O O-O 9. e4 e5 10. d5 Nb8 11. Ne1 a5 12. Nd3 c6 13. a3 a4 14. Nb1 Nbd7 15. Nc3 Nb6 16. b3 Bg4 17. f3 Bd7 18. Nb2 cxd5 19. cxd5 h5 20. Nbxa4 Nxa4 21. bxa4 h4 22. g4 Rfc8 23. Qb3 Nh7 24. Nb5 Nf8 25. f4 exf4 26. Qb4 Bxb5 27. axb5 Ng6 28. Qd2 Qe5 29. a4 Rc3 30. Rac1 Rxc1 31. Qxc1 Rxa4 32. Qc8+ Kh7 33. Qxb7 Qd4+ 34. Kh1 Ra1 35. Qxf7 Rxf1+ 36. Bxf1 Qf2 37. Bh3 f3 0-1

[Event "45th FIDE Womens Olympiad 2024"]
[Site "Budapest"]
[Date "2024.09.15"]
[Round "5.111"]
[White "Chirivi C, Jenny Astrid"]
[Black "Koh, Wei Le Gladys"]
[Result "0-1"]
[ECO "D30"]
[WhiteElo "2120"]
[BlackElo "1788"]
[Annotator "TA"]
[PlyCount "106"]
[EventDate "2024.09.05"]
[EventType "team-tourn"]
[EventCountry "HUN"]
[SourceTitle "playchess.com"]
[Source "ChessBase"]
[SourceQuality "1"]
[WhiteTeam "Colombia"]
[BlackTeam "Singapore"]
[WhiteTeamCountry "COL"]
[BlackTeamCountry "SIN"]
[TimeControl "40/5400+30:1800+30"]

{[%evp 15,106,33,38,16,25,16,22,19,16,16,14,-4,35,24,36,33,68,45,51,37,62,49,59,56,51,16,44,-8,0,7,67,-331,-327,-411,-386,-443,-442,-431,-437,-505,-504,-492,-462,-474,-484,-482,-453,-467,-435,-479,-415,-421,-413,-379,-421,-435,-382,-437,-238,-380,-365,-396,-393,-430,-373,-522,-522,-506,-498,-522,-522,-514,-514,-895,-867,-805,-788,-882,-872,-764,-734,-879,-851,-1483,-1514,-1107,-1107,-4622,-4377,-1690,-1664,-1058,-1037]} 1. d4 d5 2. c4 c6 3. Nf3 Nf6 4. e3 e6 5. Bd3 Nbd7 6. O-O dxc4 7. Bxc4 b5 8. Bd3 Bb7 9. a4 {[%cal Ba2a4,Ba4a5,Ba5a6][%mdl 32]} b4 10. Nbd2 Be7 11. e4 {[%cal Be3e4,Be4e5][%mdl 32] The position is equal.} c5 12. e5 Nd5 13. Nc4 h6 {Against Bg5} 14. a5 Rc8 15. Qe2 Kf8 16. Rd1 (16. Nd6 {is interesting.} Bxd6 17. exd6 cxd4 18. a6) 16... Qc7 17. a6 Ba8 18. Bd2 Qb8 19. h4 {[%cal Bh2h4,Bh4h5][%mdl 32]} g6 20. h5 g5 21. g3 ({White should try} 21. dxc5 $14 Kg7 22. c6 Rxc6 23. Na5) 21... cxd4 22. Nxd4 N5b6 ({Black should play} 22... Kg7 $11) 23. Ra5 $2 {[%mdl 8192] [#] Now White is beyond hope.} (23. Nd6 $14 {keeps the upper hand.} Bxd6 24. exd6 Qxd6 25. Nb5) 23... Nxc4 $1 $19 24. Bxc4 {[#]} Qc7 $1 {[%csl LRa5,LRc4]} 25. Rb5 {[%cal Oc4e6] Black must now prevent Bxe6!} Qxc4 26. Qxc4 Rxc4 27. Be1 Nb6 28. b3 Rc5 29. Bxb4 Rxb5 30. Bxe7+ Kxe7 31. Nxb5 Bd5 32. b4 Nd7 33. f4 gxf4 34. gxf4 Rg8+ 35. Kf2 Rb8 36. Nxa7 {[%cal Od1d5] Rxd5! is the strong threat.} Ra8 (36... Rxb4 $142 37. Nc8+ Kd8) 37. Nb5 (37. Rxd5 $142 exd5 38. Nc6+ Ke8 39. b5) 37... Rxa6 38. Nc3 Bb7 39. Ke3 Nb6 40. f5 Nd5+ {Black is clearly winning.} 41. Nxd5+ Bxd5 {[%mdl 4096] Endgame. KRB-KR} 42. Kd4 Rc6 43. f6+ Kd7 44. Rb1 (44. Rg1 $142 Rc4+ 45. Kd3) 44... Rc4+ 45. Ke3 Re4+ 46. Kd3 Rxe5 {Strongly threatening ...Be4+.} 47. Ra1 Bb7 48. Kc4 Rxh5 49. b5 Kc7 50. Rd1 Bd5+ 51. Kb4 Kb6 {Hoping for ...Rh4+.} 52. Ra1 Rh4+ 53. Kc3 Rf4 {Weighted Error Value: White=0.58/Black=0.18 (very precise) .  Loses game:     	White=1     	---        Mistake:       	White=3     	Black=2      Inaccurate:     	White=2     	Black=2      OK:         	White=14    	Black=15     Best:        	White=1     	Black=2      Strong:       	---       	Black=2} 0-1